Cogmind - Beta 11.1 @@@ ROGUE MODE // 2022.05.06 @ 10:59:45 Player: Loquitran Result: Destroyed by Y-54 Guardian with Gatling Laser Performance ------------- Evolutions (4) 2000 Regions Visited (12) 2400 Robots Destroyed (144) 720 Value Destroyed (5241) 5241 Prototype IDs (11) 220 Alien Tech Used (0) 0 Bonus (2504) 2504 TOTAL SCORE: 13085 Bonus ------- High Alert Combat Kills 567 Follower Combat Kills 496 Entered Garrisons 600 Used RIF Installer 1000 Friendly Fire -159 Cogmind --------- Core Integrity 0/850 Matter 258/300 Energy 16/100 System Corruption 17% Temperature Cool (12) Movement Core (1350) Ox26 Location -6/Garrison Parts ------- > --- POWER (2) -------- (None) > --- PROPULSION (6) --- (None) > --- UTILITY (5) ------ Improved Heat Sink Huge Storage Unit Relay Coupler [Grunt] (27) > --- WEAPON (2) ------- (None) > --- INVENTORY (25) --- Surge Thruster Improved Heat Sink Improved Heat Sink Improved Signal Interpreter Matter Filter Light Armor Plating Improved Light Armor Plating Relay Coupler [NC] (25) Relay Coupler [Grunt] (32) Proton Cannon Proton Cannon Advanced Beam Cannon Advanced Beam Cannon Enhanced Autogun Powered Hammer Katana Katana Peak State ------------ > --- POWER ------------ Improved Ion Engine > --- PROPULSION ------- Light Treads Advanced Treads Advanced Treads Advanced Treads > --- UTILITY ---------- Improved Heat Sink Huge Storage Unit Advanced Terrain Scanner Relay Coupler [Sentry] Relay Coupler [Hunter] > --- WEAPON ----------- Improved EM Shotgun Improved EM Shotgun > --- INVENTORY -------- Nuclear Core Surge Thruster Cryofiber Web Improved Heat Sink Improved Heat Sink Improved Signal Interpreter Matter Filter Light Armor Plating Improved Light Armor Plating Relay Coupler [NC] Relay Coupler [Grunt] Relay Coupler [Grunt] Improved EM Shotgun Advanced Beam Rifle Proton Cannon Proton Cannon Advanced Beam Cannon Advanced Beam Cannon Enhanced Autogun Improved Grenade Launcher Datajack Powered Hammer Katana Katana [Rating: 43] Favorites ----------- Power Improved Ion Engine Engine Improved Ion Engine Power Core Light Nuclear Core Propulsion Advanced Treads Treads Advanced Treads Leg Aluminum Leg Wheel Armored Wheel Hover Unit Airjet Flight Unit Flight Unit Utility Improved Heat Sink Device Improved Heat Sink Storage Huge Storage Unit Hackware Relay Coupler [Hunter] Protection Medium Armor Plating Weapon Advanced Beam Rifle Energy Gun Advanced Beam Rifle Energy Cannon Advanced Beam Cannon Ballistic Gun Enhanced Autogun Launcher Grenade Launcher Special Weapon Plasma Flamer Impact Weapon Powered Hammer Slashing Weapon Katana Special Melee Weapon Datajack Build | -11 -10 -10 -9 -9 -8 -8 -8 -8 -8 -8 -6 -6 ------- Run | Scr Mat Min Mat Min Mat Gar Mat Sto Gar Rec Fac Gar Slots Evolved 8 | . . . 2 . 2 . . . . . 4 . Power 1 | . . . . . . . . . . . 1 . Propulsion 4 | . . . 2 . . . . . . . 2 . Utility 3 | . . . . . 2 . . . . . 1 . Weapon . | . . . . . . . . . . . . . Parts Attached 166 | . 11 2 7 11 14 24 27 36 11 4 1 18 Power 13 | . . 1 . 1 2 1 2 2 1 . . 3 Engine 8 | . . 1 . . 2 1 . 2 1 . . 1 Core 5 | . . . . 1 . . 2 . . . . 2 Reactor . | . . . . . . . . . . . . . Propulsion 42 | . 3 1 4 6 3 2 9 10 1 . . 3 Treads 10 | . 3 . . . . . . 4 1 . . 2 Leg 22 | . . . . 4 3 2 6 6 . . . 1 Wheel 2 | . . 1 . 1 . . . . . . . . Hover 4 | . . . 4 . . . . . . . . . Flight 4 | . . . . 1 . . 3 . . . . . Utility 32 | . 3 . 1 . 2 5 7 7 3 . 1 3 Device 21 | . 2 . 1 . 1 5 4 5 . . 1 2 Storage 2 | . 1 . . . . . . 1 . . . . Processor . | . . . . . . . . . . . . . Hackware 4 | . . . . . . . 1 . 2 . . 1 Protection 5 | . . . . . 1 . 2 1 1 . . . Artifact . | . . . . . . . . . . . . . Weapon 79 | . 5 . 2 4 7 16 9 17 6 4 . 9 Energy Gun 30 | . 2 . 1 . 2 2 6 9 2 1 . 5 Energy Cannon 8 | . 1 . . 1 1 2 . 1 1 . . 1 Ballistic Gun 9 | . 2 . 1 1 1 . 1 3 . . . . Ballistic Cannon . | . . . . . . . . . . . . . Launcher 8 | . . . . 2 1 2 . . . 2 . 1 Special Weapon 8 | . . . . . 2 5 . 1 . . . . Impact Weapon 1 | . . . . . . . . . . . . 1 Slashing Weapon 1 | . . . . . . . . . 1 . . . Piercing Weapon . | . . . . . . . . . . . . . Special Melee Weapon 14 | . . . . . . 5 2 3 2 1 . 1 Unidentified Prototypes 7 | . . . . . 1 . 3 3 . . . . Corrupted Parts 1 | . . . . . . . . . . . . 1 System Corruption 9 | . . . . . . . . . . . . 9 Parts Lost 39 | . 1 1 3 2 . 4 5 3 3 . . 17 Power 5 | . . . . 1 . . . . 1 . . 3 Propulsion 15 | . . 1 2 1 . 1 3 1 1 . . 5 Utility 9 | . . . . . . 1 2 2 1 . . 3 Weapon 10 | . 1 . 1 . . 2 . . . . . 6 Highest Loss Streak 9 | . 1 1 2 2 . 2 4 2 2 . . 9 To Critical Strikes 1 | . . . . . . . . . 1 . . . Average Slot Usage (%) 93 | . 98 98 94 87 99 93 92 97 99 99 78 51 Engine 8 | . 14 14 11 7 8 9 4 8 8 9 6 4 Treads 19 | . 26 25 . . . . . 28 35 36 26 9 Leg 9 | . 1 . . 12 36 33 32 5 . . . 1 Hover 2 | . . . 37 15 . . . . . . . . Device 17 | . 13 14 11 11 17 22 15 25 24 9 11 6 Storage 9 | . 14 14 11 11 9 9 9 9 9 9 6 6 Hackware 3 | . . . . . . . 4 . 2 18 13 10 Protection 1 | . . . . . 8 2 3 . . . . . Energy Gun 10 | . 16 . 5 2 5 9 17 10 9 13 13 6 Energy Cannon 1 | . 5 . . . 2 2 . 1 5 . . . Ballistic Gun 3 | . 6 28 16 14 3 . . 4 . . . . Special Weapon 1 | . . . . . 5 4 . . . . . . Naked Turns . | . . . . . . . . . . . . . Heaviest Build 100 | 10 20 22 22 22 34 34 27 97 100 97 95 99 Greatest Support 88 | 20 40 40 32 40 57 57 57 88 88 86 86 86 Greatest Overweight (x) 32 | . . 1 2 1 . . . 8 1 1 1 32 Average Overweight (x) . | . . . . . . . . . 1 1 1 2 Largest Inventory Capacity 25 | . 10 10 10 10 10 10 10 25 25 25 25 25 Average Capacity 17 | . 8 10 10 10 10 10 10 21 25 25 25 25 Most Carried 25 | . 9 9 10 10 10 10 10 22 24 25 25 25 Average Carried 14 | . 7 8 9 9 9 9 9 13 22 24 24 22 Final Capacity 25 | 8 10 10 10 10 10 10 10 25 25 25 25 25 Final Carried 25 | 6 9 8 10 10 10 10 10 21 24 24 25 17 Class Distribution -------------------- 33% | Mutant 32% | Scavenger-Mutant 21% | Bothacker-Mutant 11% | Commander-Mutant Dominant Class ---------------- Mutant | -10/Materials Mutant | -10/Mines Mutant | -9/Materials Mutant | -9/Mines Scavenger-Mutant | -8/Materials Scavenger-Mutant | -8/Garrison Scavenger-Mutant | -8/Materials Commander-Mutant | -8/Storage Bothacker-Mutant | -8/Garrison Bothacker-Mutant | -8/Recycling Bothacker-Mutant | -6/Factory Mutant | -6/Garrison Resources | -11 -10 -10 -9 -9 -8 -8 -8 -8 -8 -8 -6 -6 ----------- Run | Scr Mat Min Mat Min Mat Gar Mat Sto Gar Rec Fac Gar Matter Collected 2970 | 200 147 58 215 182 205 335 321 706 133 301 . 167 Remotely . | . . . . . . . . . . . . . Salvage Created 5141 | . 662 92 304 279 299 485 743 943 485 432 . 417 Parts 263 | . 24 3 17 25 16 34 50 38 24 25 . 7 Haulers Intercepted 6 | . . . . . 1 . 2 3 . . . . Recyclers Shooed 9 | . . . 1 . . . . 2 . 6 . . Parts Field Recycled . | . . . . . . . . . . . . . Retrieved Matter . | . . . . . . . . . . . . . Parts Self-Destructed . | . . . . . . . . . . . . . Prevented . | . . . . . . . . . . . . . Kills | -11 -10 -10 -9 -9 -8 -8 -8 -8 -8 -8 -6 -6 ------- Run | Scr Mat Min Mat Min Mat Gar Mat Sto Gar Rec Fac Gar Combat Hostiles Destroyed 116 | . 15 2 10 15 4 17 8 11 14 11 . 9 Melee 2 | . . . . . . . . . . . . 2 Guns 74 | . 13 2 10 6 2 8 6 11 8 7 . 1 Cannons 11 | . 1 . . 1 . 5 . . 4 . . . AOE 22 | . . . . 8 2 1 2 . 2 4 . 3 Classes Destroyed 15 | . 2 . 3 1 4 3 1 . . 1 . . Worker 6 | . . . 1 . 2 . 3 . . . . . Builder 1 | . . . . . 1 . . . . . . . Hauler 6 | . . . . . 1 . 2 3 . . . . Recycler 9 | . . . . . 1 . 1 2 . 5 . . Drone 11 | . . . . . . . . . . 11 . . Watcher 5 | . 2 . . . . . 3 . . . . . Swarmer 24 | . . . 6 7 . 4 . . 7 . . . Cutter 4 | . . . . . . 3 . . . . . 1 Grunt 53 | . 15 2 3 7 2 3 4 6 4 . . 7 Brawler 5 | . . . . 1 . . 1 . 2 . . 1 Duelist 2 | . . . . . . . 1 1 . . . . Sentry 13 | . . . 1 . 1 4 2 4 1 . . . Demolisher 1 | . . . . . . 1 . . . . . . Specialist 1 | . . . . . . 1 . . . . . . Hunter 3 | . . . . . 1 1 . 1 . . . . Best Kill Streak 7 | . 4 2 4 4 4 4 7 4 5 4 . 4 Combat Bots Only 5 | . 4 2 4 4 2 4 3 3 5 2 . 4 Max Kills in Single Turn 3 | . 2 1 2 2 1 2 2 2 3 2 . 2 Gunslinging 1 | . 1 . . 1 . 1 . . . . . . Exploded 2 | . . . . 2 1 1 2 . 2 2 . 2 Melee 1 | . . . . . . . . . . . . 1 Uniques/NPCs Destroyed . | . . . . . . . . . . . . . Combat | -11 -10 -10 -9 -9 -8 -8 -8 -8 -8 -8 -6 -6 -------- Run | Scr Mat Min Mat Min Mat Gar Mat Sto Gar Rec Fac Gar Damage Taken 6807 | . 713 93 514 265 154 735 831 719 618 28 . 2137 Core 1590 | . 187 . 142 29 17 92 162 31 75 . . 855 Absorbed by Shields 11 | . . . . . . . . 11 . . . . Regen/Repaired (Parts) 266 | . 120 . . . 92 . . 54 . . . . Core Remaining (%) 53 | 100 . 25 . 57 . . . . . 31 . . Volleys Fired 406 | . 49 6 29 26 19 37 40 112 32 32 . 24 Largest 2 | . 2 2 2 2 2 2 2 2 2 2 . 2 Hottest 175 | . 125 46 73 83 165 175 122 129 136 90 . 150 Shots Fired 705 | . 97 12 56 37 32 65 82 193 50 43 . 38 Gun 539 | . 72 12 56 20 13 36 82 149 34 34 . 31 Cannon 60 | . 25 . . 3 6 6 . 2 16 . . 2 Launcher 38 | . . . . 14 6 4 . . . 9 . 5 Special 68 | . . . . . 7 19 . 42 . . . . Kinetic 174 | . 7 12 44 20 . . . 91 . . . . Thermal 430 | . 90 . 12 3 26 61 82 102 34 . . 20 Explosive 38 | . . . . 14 6 4 . . . 9 . 5 Electromagnetic 63 | . . . . . . . . . 16 34 . 13 Robot Hit Streak 25 | . 15 5 6 12 6 18 10 13 9 4 . 25 Robot Miss Streak 12 | . 2 1 5 4 2 2 4 4 3 12 . 2 Penetration Max . | . . . . . . . . . . . . . Secondary Targets 8 | . 1 . 1 2 . 2 2 . . . . . Max Gunslinging Chain 1 | . 1 . 1 1 . 1 1 . . . . . Shots Hit Robots 398 | . 71 9 27 17 15 44 53 68 36 18 . 40 Core Hits 224 | . 24 4 14 24 15 23 28 27 20 23 . 22 Critical Kills . | . . . . . . . . . . . . . Critical Parts Destroyed 1 | . . . . . . . . . . . . 1 Critical Strikes 18 | . 1 . 1 . . 6 3 4 1 . . 2 Burn 17 | . 1 . 1 . . 6 3 4 1 . . 1 Smash 1 | . . . . . . . . . . . . 1 Melee Attacks 30 | . . . . . . 6 8 1 3 4 . 8 Impact 6 | . . . . . . . . . . . . 6 Slashing 1 | . . . . . . . . . 1 . . . Piercing . | . . . . . . . . . . . . . Sneak Attacks 1 | . . . . . . . 1 . . . . . Combat Hostiles . | . . . . . . . . . . . . . Follow-up Attacks . | . . . . . . . . . . . . . Damage Inflicted 9196 | . 1080 148 393 768 523 925 1126 1323 718 1008 . 1184 Guns 5619 | . 776 135 393 138 165 500 1040 1288 404 273 . 507 Cannons 908 | . 299 . . 53 75 150 . 21 246 . . 64 Explosions 2195 | . . . . 577 230 124 79 . 68 735 . 382 Melee 231 | . . . . . . . . . . . . 231 Ramming 39 | . 5 13 . . . . 7 14 . . . . Kinetic 1511 | . 80 135 330 138 . . . 828 . . . . Thermal 4635 | . 995 . 63 53 293 801 1040 481 472 51 . 386 Explosive 1997 | . . . . 577 230 124 . . . 684 . 382 Electromagnetic 783 | . . . . . . . 79 . 246 273 . 185 Impact 231 | . . . . . . . . . . . . 231 Slashing . | . . . . . . . . . . . . . Piercing . | . . . . . . . . . . . . . Highest Corruption 17 | . 1 1 2 2 . . 2 2 11 11 3 17 Average Corruption 4 | . 1 1 2 2 . . 2 2 4 11 2 11 Corruption Purged . | . . . . . . . . . . . . . Corruption Blocked . | . . . . . . . . . . . . . Effects 138 | . 6 2 . 12 . . 3 26 16 51 . 22 Message Errors 33 | . 1 1 . 4 . . . 9 3 10 . 5 Matter Fused 36 | . 3 . . 5 . . 1 2 7 16 . 2 Heat Flow Errors 14 | . 1 . . . . . . 3 1 7 . 2 Energy Discharges 11 | . . 1 . . . . . 3 . 5 . 2 Parts Rejected 4 | . . . . . . . . 2 . . . 2 Data Loss (minor) 15 | . 1 . . 2 . . . 1 3 5 . 3 Data Loss (major) 8 | . . . . . . . . 1 1 4 . 2 Misfires 8 | . . . . . . . 2 3 . 2 . 1 Alerts 6 | . . . . . . . . 1 1 2 . 2 Weapon Failures 3 | . . . . 1 . . . 1 . . . 1 Overload Shots . | . . . . . . . . . . . . . Overflow Damage 125 | . . . . . . . . . 23 48 . 54 Projectiles 5 | . . . . . . . . . 5 . . . Explosions 70 | . . . . . . . . . 18 48 . 4 Melee 50 | . . . . . . . . . . . . 50 Knockbacks . | . . . . . . . . . . . . . Impact . | . . . . . . . . . . . . . Kinetic . | . . . . . . . . . . . . . Secondary . | . . . . . . . . . . . . . Self-Inflicted Damage 124 | . . 3 . 65 . . 29 . 15 12 . . Shots 7 | . . . . 4 . . 1 . 1 1 . . Rammed 12 | . 4 4 . . . . . 4 . . . . Targets Rammed 14 | . 4 4 . . . . 2 4 . . . . Kicked 2 | . . . . . . . 2 . . . . . Crushed . | . . . . . . . . . . . . . Highest Temperature 314 | . 314 2 16 . 48 48 294 142 193 258 . 119 Average Temperature 84 | . 100 2 5 . 15 19 115 50 92 102 . 37 Received Heat Transfer 2326 | . 429 54 141 90 36 81 351 381 117 . . 646 Effects 2 | . 2 . . . . . . . . . . . Energy Bleed 1 | . 1 . . . . . . . . . . . Interference 1 | . 1 . . . . . . . . . . . Siege Activations . | . . . . . . . . . . . . . Robots Corrupted . | . . . . . . . . . . . . . Combat Hostiles . | . . . . . . . . . . . . . Parts Fried 2 | . . . . . . . . . . . . 2 Impact Corruptions 2 | . . . . . . . . . . . . 2 Robots Melted 5 | . 1 . . . . 3 . . . . . 1 Combat Hostiles 5 | . 1 . . . . 3 . . . . . 1 Parts Melted 23 | . 9 . . . 2 2 . 4 4 . . 2 Heat Transferred 11581 | . 2469 . 259 111 764 2809 2183 1184 914 50 . 838 Parts Sabotaged . | . . . . . . . . . . . . . Parts Stolen . | . . . . . . . . . . . . . Parts Stripped . | . . . . . . . . . . . . . Power Chain Reactions 2 | . . . . . . . . . 1 1 . . Missiles Intercepted . | . . . . . . . . . . . . . Alert | -11 -10 -10 -9 -9 -8 -8 -8 -8 -8 -8 -6 -6 ------- Run | Scr Mat Min Mat Min Mat Gar Mat Sto Gar Rec Fac Gar Peak Influence 1078 | . 235 73 358 477 271 906 673 549 698 582 1078 896 Initial 1078 | . . 33 27 139 131 109 441 256 303 313 1078 754 Average 401 | . 103 38 179 282 187 496 547 412 467 406 1078 742 Maximum Alert Level 3 | . 1 . 1 2 1 3 2 2 2 2 3 3 Low Security (%) 18 | . 88 100 61 26 57 14 . . . . . . Level 1 33 | . 11 . 38 47 42 26 . 35 55 51 . . Level 2 39 | . . . . 26 . 31 100 64 44 48 . 29 Level 3 9 | . . . . . . 27 . . . . 100 70 Level 4 . | . . . . . . . . . . . . . Level 5 . | . . . . . . . . . . . . . High Security . | . . . . . . . . . . . . . Max Security . | . . . . . . . . . . . . . Squads Dispatched 19 | . 6 . 1 . . . 7 5 . . . . Investigation 10 | . 3 . 1 . . . 2 4 . . . . Extermination . | . . . . . . . . . . . . . Reinforcement 5 | . 3 . . . . . 1 1 . . . . Assault 1 | . . . . . . . 1 . . . . . Garrison 3 | . . . . . . . 3 . . . . . Intercept . | . . . . . . . . . . . . . Searches Triggered . | . . . . . . . . . . . . . Construction Impeded . | . . . . . . . . . . . . . Haulers Reinforced . | . . . . . . . . . . . . . Active Scanning Responses . | . . . . . . . . . . . . . Cargo Convoy Interrupts . | . . . . . . . . . . . . . Stealth | -11 -10 -10 -9 -9 -8 -8 -8 -8 -8 -8 -6 -6 --------- Run | Scr Mat Min Mat Min Mat Gar Mat Sto Gar Rec Fac Gar Distress Signals 10 | . 1 . . . . . 5 4 . . . . Communications Jammed . | . . . . . . . . . . . . . Distress Signals . | . . . . . . . . . . . . . Times Spotted 201 | . 19 2 14 13 4 18 32 28 19 35 . 17 Peak Tracking Total 12 | . 4 2 4 3 2 4 12 4 3 3 . 4 Tactical Retreats 10 | . 2 . 1 . . 1 2 . 2 . . 2 Traps | -11 -10 -10 -9 -9 -8 -8 -8 -8 -8 -8 -6 -6 ------- Run | Scr Mat Min Mat Min Mat Gar Mat Sto Gar Rec Fac Gar Traps Triggered 19 | . 2 . 1 . . 4 1 2 7 . 2 . Indirectly . | . . . . . . . . . . . . . Trap Hack Attempts 144 | . . . . . . 106 . 27 11 . . . Triggered . | . . . . . . . . . . . . . Disarmed 4 | . . . . . . 1 . 1 2 . . . Reprogrammed 12 | . . . . . . 9 . 3 . . . . Reused 1 | . . . . . . . . 1 . . . . Traps Extracted . | . . . . . . . . . . . . . Installed . | . . . . . . . . . . . . . Triggered 1 | . . . . . . . . 1 . . . . Machines | -11 -10 -10 -9 -9 -8 -8 -8 -8 -8 -8 -6 -6 ---------- Run | Scr Mat Min Mat Min Mat Gar Mat Sto Gar Rec Fac Gar Machines Disabled 23 | . . . 2 3 3 4 1 3 1 5 . 1 Max in Single Turn 2 | . . . 1 1 1 1 1 1 1 2 . 1 Garrison Relay 6 | . . . . . . 4 . . 1 . . 1 Machines Sabotaged . | . . . . . . . . . . . . . Garrisons Compromised . | . . . . . . . . . . . . . Overloaded Fab Kills . | . . . . . . . . . . . . . Hacking | -11 -10 -10 -9 -9 -8 -8 -8 -8 -8 -8 -6 -6 --------- Run | Scr Mat Min Mat Min Mat Gar Mat Sto Gar Rec Fac Gar Machines Accessed 30 | . 3 . 3 1 5 . 2 8 . 7 1 . Terminals 15 | . 1 . 2 1 1 . 2 4 . 4 . . Fabricators . | . . . . . . . . . . . . . Repair Stations 4 | . 1 . . . 1 . . 2 . . . . Recycling Units 7 | . 1 . 1 . 1 . . 1 . 3 . . Scanalyzers 1 | . . . . . 1 . . . . . . . Garrison Access 3 | . . . . . 1 . . 1 . . 1 . Total Hacks 71 | . 7 . 7 3 12 . 8 20 . 12 2 . Successful 50 | . 6 . 3 2 11 . 4 14 . 8 2 . Failed 21 | . 1 . 4 1 1 . 4 6 . 4 . . Catastrophic 7 | . . . 2 . 1 . 1 2 . 1 . . Database Lockouts . | . . . . . . . . . . . . . Manual 13 | . 1 . 3 . 1 . 4 2 . 2 . . Terminals 42 | . 3 . 6 3 1 . 8 12 . 9 . . Fabricators . | . . . . . . . . . . . . . Repair Stations 12 | . 3 . . . 4 . . 5 . . . . Recycling Units 7 | . 1 . 1 . 1 . . 1 . 3 . . Scanalyzers 4 | . . . . . 4 . . . . . . . Garrison Access 6 | . . . . . 2 . . 2 . . 2 . Terminal Hacks 21 | . 2 . 2 2 . . 4 7 . 4 . . Record 2 | . . . . 1 . . 1 . . . . . Part Schematic 2 | . . . . . . . . 2 . . . . Robot Schematic 1 | . . . . . . . . . . 1 . . Robot Analysis 1 | . . . . . . . 1 . . . . . Prototype ID Bank 2 | . . . . . . . 2 . . . . . Open Door 2 | . . . . . . . . 2 . . . . Level Access Points 1 | . . . . . . . . . . 1 . . Branch Access Points 2 | . 1 . 1 . . . . . . . . . Emergency Access Points 1 | . . . . . . . . . . 1 . . Terminal Index 1 | . . . . . . . . 1 . . . . Scanalyzer Index 1 | . 1 . . . . . . . . . . . Alert Level 2 | . . . 1 . . . . . . 1 . . Locate Traps 1 | . . . . . . . . 1 . . . . Reprogram Traps 1 | . . . . . . . . 1 . . . . Zone Layout 1 | . . . . 1 . . . . . . . . Fabricator Hacks . | . . . . . . . . . . . . . Repair Station Hacks 11 | . 3 . . . 4 . . 4 . . . . Scan Component 6 | . 2 . . . 2 . . 2 . . . . Repair 5 | . 1 . . . 2 . . 2 . . . . Recycling Unit Hacks 7 | . 1 . 1 . 1 . . 1 . 3 . . Report Inventory 7 | . 1 . 1 . 1 . . 1 . 3 . . Scanalyzer 4 | . . . . . 4 . . . . . . . Insert Component 2 | . . . . . 2 . . . . . . . Analyze 2 | . . . . . 2 . . . . . . . Garrison Access Hacks 5 | . . . . . 1 . . 2 . . 2 . Unlock Access 3 | . . . . . 1 . . 1 . . 1 . Coupler Status 2 | . . . . . . . . 1 . . 1 . Unauthorized Hacks 2 | . . . . . 1 . . . . 1 . . Terminals 1 | . . . . . . . . . . 1 . . Assimilate 1 | . . . . . . . . . . 1 . . Fabricators . | . . . . . . . . . . . . . Repair Stations . | . . . . . . . . . . . . . Recycling Units . | . . . . . . . . . . . . . Scanalyzers . | . . . . . . . . . . . . . Garrison Access 1 | . . . . . 1 . . . . . . . Watchers 1 | . . . . . 1 . . . . . . . Data Cores Recovered . | . . . . . . . . . . . . . Used . | . . . . . . . . . . . . . Hacking Detections 19 | . 2 . 3 . 3 . 2 5 . 3 1 . Full Trace Events 10 | . 2 . 2 . . . 2 3 . 1 . . Feedback Events 1 | . 1 . . . . . . . . . . . Corruption 1 | . 1 . . . . . . . . . . . Feedback Blocked . | . . . . . . . . . . . . . Robot Schematics Acquired 1 | . . . . . . . . . . 1 . . Robots Built . | . . . . . . . . . . . . . Authchips . | . . . . . . . . . . . . . Time . | . . . . . . . . . . . . . Total Robot Build Rating . | . . . . . . . . . . . . . Part Schematics Acquired 4 | . . . . . 2 . . 2 . . . . Parts Built . | . . . . . . . . . . . . . Authchips . | . . . . . . . . . . . . . Time . | . . . . . . . . . . . . . Total Part Build Rating . | . . . . . . . . . . . . . Parts Repaired 5 | . 1 . . . 2 . . 2 . . . . Time 172 | . 26 . . . 70 . . 76 . . . . Parts Recycled . | . . . . . . . . . . . . . Recycled Matter . | . . . . . . . . . . . . . Retrieved Matter . | . . . . . . . . . . . . . Retrieved Components . | . . . . . . . . . . . . . Parts Scanalyzed 2 | . . . . . 2 . . . . . . . Part Schematics Acquired 2 | . . . . . 2 . . . . . . . Parts Damaged . | . . . . . . . . . . . . . Bothacking | -11 -10 -10 -9 -9 -8 -8 -8 -8 -8 -8 -6 -6 ------------ Run | Scr Mat Min Mat Min Mat Gar Mat Sto Gar Rec Fac Gar Used RIF Installer 2 | . . . . . . 1 . . 1 . . . Signal Jammer 1 | . . . . . . . . . 1 . . . Robots Hacked 7 | . . . . . . 1 3 . 2 . . 1 Non-combat 1 | . . . . . . . 1 . . . . . Combat 6 | . . . . . . 1 2 . 2 . . 1 Robot Hacks Applied 9 | . . . . . . 1 5 . 2 . . 1 parse_system 2 | . . . . . . 1 . . . . . 1 ignore_repairs 1 | . . . . . . . 1 . . . . . go_dormant 1 | . . . . . . . 1 . . . . . overwrite_iff 3 | . . . . . . . 3 . . . . . streamctrl_high 1 | . . . . . . . . . 1 . . . formatsys_high 1 | . . . . . . . . . 1 . . . Relay Couplers Released 25 | . . . . . . 17 . . 4 . . 4 Machine Destruction 25 | . . . . . . 17 . . 4 . . 4 Attached 4 | . . . . . . . 1 . 2 . . 1 Fabnet Peak Effective % . | . . . . . . . . . . . . . Robots Rewired 7 | . . . . . . . . . . 7 . . Allies Hacked . | . . . . . . . . . . . . . Hacks Repelled . | . . . . . . . . . . . . . Allies | -11 -10 -10 -9 -9 -8 -8 -8 -8 -8 -8 -6 -6 -------- Run | Scr Mat Min Mat Min Mat Gar Mat Sto Gar Rec Fac Gar Total Allies 21 | . . . . . . . 2 10 2 7 . . Largest Group 10 | . . . . . . . 2 10 2 8 5 5 Highest-Rated Group 173 | . . . . . . . 20 173 36 83 44 44 Highest-Rated Ally 29 | . . . . . . . 10 29 21 18 16 16 Total Orders . | . . . . . . . . . . . . . Ally Attacks 279 | . . . . . . . 7 96 2 172 . 2 Total Damage 2607 | . . . . . . . 108 1289 45 1155 . 10 Kills 54 | . . . . . . . 3 17 . 34 . . Allies Corrupted . | . . . . . . . . . . . . . Allies Melted . | . . . . . . . . . . . . . Intel | -11 -10 -10 -9 -9 -8 -8 -8 -8 -8 -8 -6 -6 ------- Run | Scr Mat Min Mat Min Mat Gar Mat Sto Gar Rec Fac Gar Robot Analysis Total 1 | . . . . . . . 1 . . . . . Derelict Logs Recovered . | . . . . . . . . . . . . . Drone Launches . | . . . . . . . . . . . . . Drone Recoveries . | . . . . . . . . . . . . . Exploration | -11 -10 -10 -9 -9 -8 -8 -8 -8 -8 -8 -6 -6 ------------- Run | Scr Mat Min Mat Min Mat Gar Mat Sto Gar Rec Fac Gar Turns Passed 9821 | . 941 114 275 868 511 1144 479 2121 1167 1460 174 567 Spaces Moved 4337 | 1 426 53 271 508 285 682 223 785 412 488 76 127 Core 7 | . . . . . . . . 3 . . . 4 Treads 2090 | . 391 46 . . . . . 586 412 488 76 91 Legs 1644 | 1 35 . . 190 285 682 223 196 . . . 32 Wheels 96 | . . 7 4 85 . . . . . . . . Hover 500 | . . . 267 233 . . . . . . . . Flight . | . . . . . . . . . . . . . Fastest Speed 48 | 120 120 115 48 105 120 122 120 90 225 228 228 228 Average Speed 163 | 120 156 155 56 115 120 122 121 192 225 228 228 335 Slowest Speed 1650 | 120 160 240 205 190 122 123 122 450 228 228 228 1650 Overloaded Moves . | . . . . . . . . . . . . . Propulsion Burnouts . | . . . . . . . . . . . . . Robots Hopped . | . . . . . . . . . . . . . Cave-ins Triggered . | . . . . . . . . . . . . . Exploration Rate (%) 41 | 2 60 19 34 79 23 84 26 79 39 66 3 21 Regions Visited 12 Branch Regions 4 Pre-discovered Areas . | . . . . . . . . . . . . . Known Exits Taken 6 | . 1 . 1 . 1 . . 1 . 1 1 . Unknown Exits Taken 4 | 1 . 1 . 1 . . 1 . . . . . Scrap Searched 1 | . . . . 1 . . . . . . . . Spaces Dug 9 | . . . . 9 . . . . . . . . Terrain Destroyed 223 | . . . . 80 48 7 . . 4 55 . 29 Melee . | . . . . . . . . . . . . . Projectile 3 | . . . . . 3 . . . . . . . AOE 220 | . . . . 80 45 7 . . 4 55 . 29 Terrain Rammed . | . . . . . . . . . . . . . Walls Destroyed . | . . . . . . . . . . . . . Machines Disabled . | . . . . . . . . . . . . . Actions | -11 -10 -10 -9 -9 -8 -8 -8 -8 -8 -8 -6 -6 --------- Run | Scr Mat Min Mat Min Mat Gar Mat Sto Gar Rec Fac Gar Total 6301 | . 601 72 344 751 416 911 340 1189 594 792 77 214 Wait 911 | . 94 8 33 196 80 31 27 185 107 114 . 36 Move 4326 | . 425 52 270 507 285 681 222 784 411 487 75 127 Hop . | . . . . . . . . . . . . . Pick Up 62 | . 10 . 2 4 9 7 4 18 7 . 1 . Fast Attach 41 | . 2 . 4 6 . 2 8 11 2 . 1 5 Attach 22 | . 1 1 1 1 2 2 2 1 1 1 . 9 Detach 3 | . . . . 1 . . . . . 1 . 1 Swap 103 | . 8 1 2 4 12 20 17 24 8 3 . 4 Drop 68 | . 8 . 3 6 9 11 10 18 3 . . . Fire 406 | . 49 6 29 26 19 37 40 112 32 32 . 24 Melee 30 | . . . . . . 6 8 1 3 4 . 8 Ram 1 | . . 1 . . . . . . . . . . Kick 2 | . . . . . . . 2 . . . . . Crush 11 | . 4 3 . . . . . 4 . . . . Escape Stasis 20 | . . . . . . 8 . 4 8 . . . Rewire 151 | . . . . . . . . . 1 150 . . Trap 144 | . . . . . . 106 . 27 11 . . . Miscellaneous . | . . . . . . . . . . . . . Route ------- -11/Scrapyard -10/Materials (discovered 2 exits: *Mat / *Min) -10/Mines -9/Materials (discovered 2 exits: *Min x2) -9/Mines (discovered 2 exits: *Mat x2) -8/Materials (discovered 2 exits: *Sto / Gar) -8/Garrison (discovered 3 exits: *Mat x3) -8/Materials -8/Storage -8/Garrison -8/Recycling -6/Factory -6/Garrison History --------- Turn | Location | Event 1 | -11/Scrapyard | Discovered new exit (range 0) 1 | -11/Scrapyard | Entered Materials 21 | -10/Materials | Identified exit to Mines 334 | -10/Materials | Build established: Mutant 521 | -10/Materials | Core integrity fell below 50% 647 | -10/Materials | Repaired Lgt. Treads 866 | -10/Materials | Discovered new exit (range 10) 942 | -10/Materials | Entered Mines 943 | -10/Mines | Assembled infested the area 1050 | -10/Mines | Discovered new exit (range 6) 1056 | -10/Mines | Entered Materials 1056 | -9/Materials | Evolved 2 slots: Propulsion x2 1260 | -9/Materials | Identified exit to Mines 1331 | -9/Materials | Entered Mines 1586 | -9/Mines | Discovered new exit (range 15) 2171 | -9/Mines | Discovered new exit (range 13) 2181 | -9/Mines | A weapon hastily lodged in a ceiling crevice suddenly fell to the ground 2199 | -9/Mines | Entered Materials 2199 | -8/Materials | Evolved 2 slots: Utility x2 2253 | -8/Materials | Build established: Scavenger-Mutant 2291 | -8/Materials | Repaired Lgt. Nuclear Core 2324 | -8/Materials | Repaired Arm. Wheel 2622 | -8/Materials | Discovered new exit (range 15) 2710 | -8/Materials | Identified exit to Garrison 2710 | -8/Materials | Entered Garrison 2740 | -8/Garrison | Triggered checkpoint 2821 | -8/Garrison | Garrison Relay disabled 2866 | -8/Garrison | Triggered checkpoint 2894 | -8/Garrison | Triggered checkpoint 3149 | -8/Garrison | Discovered new exit (range 10) 3174 | -8/Garrison | Triggered checkpoint 3216 | -8/Garrison | Garrison Relay disabled 3294 | -8/Garrison | Triggered checkpoint 3316 | -8/Garrison | Triggered checkpoint 3373 | -8/Garrison | Discovered new exit (range 12) 3542 | -8/Garrison | Triggered checkpoint 3570 | -8/Garrison | Garrison Relay disabled 3712 | -8/Garrison | Discovered new exit (range 10) 3733 | -8/Garrison | Installed Relay Interface Framework 3776 | -8/Garrison | Garrison Relay disabled 3784 | -8/Garrison | Triggered checkpoint 3854 | -8/Garrison | Entered Materials 4042 | -8/Materials | Garrison activated, responded to threat 4121 | -8/Materials | Lost 4 parts (2n2u) 4254 | -8/Materials | First assault squad dispatched 4318 | -8/Materials | Discovered new exit (range 13) 4333 | -8/Materials | Entered Storage 4461 | -8/Storage | Core integrity fell below 50% 4681 | -8/Storage | Identified exit to Garrison 5020 | -8/Storage | Build established: Mutant 5072 | -8/Storage | Assisted by bots powering up and referring to "LRC-V3" 5368 | -8/Storage | Build established: Commander-Mutant 5953 | -8/Storage | Repaired Imp. Heat Sink 6014 | -8/Storage | Repaired Imp. Heat Sink 6428 | -8/Storage | Build established: Mutant 6454 | -8/Storage | Entered Garrison 6454 | -8/Garrison | Accompanied by 1 ally 6466 | -8/Garrison | Expanded RIF knowledge: Signal Jamming 6622 | -8/Garrison | Triggered checkpoint 6789 | -8/Garrison | Spotted B-75 Beast 7038 | -8/Garrison | Triggered checkpoint 7134 | -8/Garrison | Build established: Scavenger-Mutant 7246 | -8/Garrison | Garrison Relay disabled 7308 | -8/Garrison | Triggered checkpoint 7316 | -8/Garrison | System corruption reached 10% 7338 | -8/Garrison | Triggered checkpoint 7384 | -8/Garrison | Triggered checkpoint 7522 | -8/Garrison | Build established: Bothacker-Mutant 7559 | -8/Garrison | Discovered new exit (range 15) 7621 | -8/Garrison | Entered Recycling 7621 | -8/Recycling | Accompanied by 1 ally 7677 | -8/Recycling | Spotter reported a threat 7771 | -8/Recycling | Spotter reported a threat 7784 | -8/Recycling | Spotter reported a threat 7810 | -8/Recycling | Spotter reported a threat 7813 | -8/Recycling | Spotter reported a threat 7842 | -8/Recycling | Spotter reported a threat 7863 | -8/Recycling | Spotter reported a threat 7885 | -8/Recycling | Spotter reported a threat 7943 | -8/Recycling | Spotter reported a threat 8015 | -8/Recycling | Spotter reported a threat 8019 | -8/Recycling | Identified exit to Factory 8019 | -8/Recycling | Spotter reported a threat 8075 | -8/Recycling | Spotter reported a threat 8075 | -8/Recycling | Spotter reported a threat 8105 | -8/Recycling | Spotter reported a threat 8118 | -8/Recycling | Spotter reported a threat 8139 | -8/Recycling | Spotter reported a threat 8139 | -8/Recycling | Spotter reported a threat 8167 | -8/Recycling | Spotter reported a threat 8189 | -8/Recycling | Spotter reported a threat 8192 | -8/Recycling | Spotter reported a threat 8227 | -8/Recycling | Spotter reported a threat 8237 | -8/Recycling | Spotter reported a threat 8242 | -8/Recycling | Spotter reported a threat 8280 | -8/Recycling | Spotter reported a threat 8295 | -8/Recycling | Spotter reported a threat 8319 | -8/Recycling | Spotter reported a threat 8333 | -8/Recycling | Spotter reported a threat 8367 | -8/Recycling | Spotter reported a threat 8367 | -8/Recycling | Spotter reported a threat 8392 | -8/Recycling | Spotter reported a threat 8433 | -8/Recycling | Spotter reported a threat 8461 | -8/Recycling | Spotter reported a threat 8463 | -8/Recycling | Spotter reported a threat 8464 | -8/Recycling | Spotter reported a threat 8467 | -8/Recycling | Spotter reported a threat 8486 | -8/Recycling | Spotter reported a threat 8514 | -8/Recycling | Spotter reported a threat 8520 | -8/Recycling | Spotter reported a threat 8539 | -8/Recycling | Spotter reported a threat 8558 | -8/Recycling | Spotter reported a threat 8567 | -8/Recycling | Spotter reported a threat 8569 | -8/Recycling | Spotter reported a threat 8575 | -8/Recycling | Spotter reported a threat 8623 | -8/Recycling | Spotter reported a threat 8627 | -8/Recycling | Spotter reported a threat 8631 | -8/Recycling | Spotter reported a threat 8632 | -8/Recycling | Spotter reported a threat 8680 | -8/Recycling | Spotter reported a threat 8684 | -8/Recycling | Spotter reported a threat 8687 | -8/Recycling | Spotter reported a threat 8707 | -8/Recycling | Spotter reported a threat 8737 | -8/Recycling | Spotter reported a threat 8773 | -8/Recycling | Spotter reported a threat 8773 | -8/Recycling | Spotter reported a threat 8824 | -8/Recycling | Spotter reported a threat 8824 | -8/Recycling | Spotter reported a threat 8862 | -8/Recycling | Spotter reported a threat 8877 | -8/Recycling | Spotter reported a threat 8882 | -8/Recycling | Spotter reported a threat 8891 | -8/Recycling | Spotter reported a threat 8915 | -8/Recycling | Spotter reported a threat 8930 | -8/Recycling | Spotter reported a threat 8940 | -8/Recycling | Spotter reported a threat 8944 | -8/Recycling | Spotter reported a threat 8949 | -8/Recycling | Spotter reported a threat 8986 | -8/Recycling | Spotter reported a threat 8986 | -8/Recycling | Spotter reported a threat 8997 | -8/Recycling | Spotter reported a threat 9028 | -8/Recycling | Spotter reported a threat 9028 | -8/Recycling | Spotter reported a threat 9081 | -8/Recycling | Entered Factory 9081 | -6/Factory | Accompanied by 5 allies 9081 | -6/Factory | Evolved 4 slots: Power x1, Propulsion x2, Utility x1 9237 | -6/Factory | Identified exit to Garrison 9255 | -6/Factory | Entered Garrison 9255 | -6/Garrison | Accompanied by 5 allies 9404 | -6/Garrison | Triggered checkpoint 9438 | -6/Garrison | Garrison Relay disabled 9604 | -6/Garrison | System corruption reached 10% 9614 | -6/Garrison | Lost 9 parts (2p3n2u2w) 9791 | -6/Garrison | Triggered checkpoint 9800 | -6/Garrison | Build established: Mutant 9803 | -6/Garrison | Spotted B-75 Beast 9808 | -6/Garrison | Core integrity fell below 50% 9812 | -6/Garrison | Core integrity fell below 20% 9822 | -6/Garrison | Destroyed by Y-54 Guardian with Gatling Laser Last Messages --------------- 09784_ G-50 Soldier destroyed. 09791_ Beams of light sweep through the air. An alarm sounds. 09794_ G-50 Soldier destroyed. 09799_ System corrupted: IFF burst signal emitted. 09805_ Imp. Grenade Launcher destroyed. 09805_ Lgt. Nuclear Core destroyed. 09805_ Plasma Rifle destroyed. 09808_ The unstable cave ceiling collapses. 09813_ Cryofiber Web destroyed. 09814_ The unstable cave ceiling collapses. 09814_ I-36 Angel crushed by falling debris. 09814_ The unstable cave ceiling collapses. 09817_ D-53 Grenadier IFF system glitched. 09819_ Imp. EM Shotgun destroyed. 09819_ I-36 Angel destroyed. 09820_ ,J0BBNRYER |>LZKYNVSMHMOEX5LZP9SU 09820_ The unstable cave ceiling collapses. 09820_ Imp. EM Shotgun destroyed. 09821_ The unstable cave ceiling collapses. 09821_ D-53 Grenadier misfires. Map ----- +----------------------------------------------------+ | ?????????????????????????????????????????????????? | | ?????????????????????????????????????????????????? | | ?????????????????????????????????????????????????? | | ?????????????????????????????????????????????????? | | ?????????????????????????????????????????????????? | | ?????????????????????????????????????????????????? | | ?????????????????????????????????????????????????? | | ?????????????????????????????????????????????????? | | ?????????????????????? ???????????????????????? | | ?????????????????????? ???????????????????????? | | ???????????????????? ???????????????????????? | | ???????????????????? ???????????????????????? | | ???????????????????BB ###????????????????????? | | ???????????????????? #???###??????????????? | | ???????????????????? % ??? #?????????????? | | ????????????????????? ??? #?????????????? | | ????????????????????? ????# #?????????????? | | ?????????????????????# [Y= ????# #?????????????? | | ?????????????????????# ##???## #?????????????? | | ???????????????????### % ?? ## #????????#####? | | ???????????????????# ### ## #????????# #? | | ???????????????????# ?# #?######## ## | | ???????????????????# d^ ##??# #?? +% | | ????????????????????# #??# #???#*######### | | ????????????????????# #### #???#%#???????# | | ??????????????????????# @ #####!#???????# | | ?????????????????????# [%%#???????# | | ????????????????????# # % #### #######???????# | | ????????????????????## #??# #?????????????# | | ?????????????????????## #??# #?????????????? | | ??????????????????????########??# #?????????????? | | ????????????????????????????????#! #?????????????? | | ????????????????????????????????#=!#?????????????? | | ????????????????????????????????# ##############? | | ????????????????????????????????#=[=%= #? | | ????????????????????????????????# [%%[%% #? | | ????????????????????????????????############# #? | | ????????????????????????????????????????????# #? | | ????????????????????????????????????????????#####? | | ?????????????????????????????????????????????????? | | ?????????????????????????????????????????????????? | | ?????????????????????????????????????????????????? | | ?????????????????????????????????????????????????? | | ?????????????????????????????????????????????????? | | ?????????????????????????????????????????????????? | | ?????????????????????????????????????????????????? | | ?????????????????????????????????????????????????? | | ?????????????????????????????????????????????????? | | ?????????????????????????????????????????????????? | | ?????????????????????????????????????????????????? | +----------------------------------------------------+ Best States ------------- Heat Dissipation 73 Energy Generation 17 Energy Capacity 290 Matter Stores 300 Matter Capacity 300 Sight Range 16 Terrain Scan Range 20 Terrain Scan Density 10 Power Amplification 20 Additional Mass Support 6 Base Temperature (-) 100 Armor Coverage 225 Evasion (%) 55 Recoil Reduction 4 Relay Coupler Types 3 Relay Coupler Value 43 Item Schematics ----------------- Adv. Beam Rifle | -8/Materials | Scanalyzed Arm. Wheel | -8/Materials | Scanalyzed Cesium-ion Thruster | -8/Storage | Hacked Coil Gun | -8/Storage | Hacked Robot Schematics ------------------ W-16 Scout | -8/Recycling | Hacked Fabricated ------------ Nothing Alien Tech Used ----------------- None Achievements -------------- A New Friend Assimilation Complete Backstab Hehehe Hey, That's Mine! Infiltrator Maybe Next Time I'll Detach My Launcher No Signal \\IAMDERELICT Challenges ------------ None Game ------ Seed BlastBombReactor Manual? 0 Play Time 01:23:28 Cumulative 10.2 hours Start 2022.05.06 @ 09:35:38 End 2022.05.06 @ 10:59:45 Sessions 1 Manual Loads 0 Difficulty Rogue Special Mode None Game No. 12 Rogue 12 Adventurer 0 Explorer 0 Win Type - Total 0 Types 0/0/0/0/0/0/0/0/0 Lore% 15 Gallery% 20 Achievement% 19 Wizard Run 0 Options --------- ASCII 0 Keyboard 0 Movement Numpad Keybinds 0 Fullscreen 0 Font 16/SmallcapsGlow Map View 112x50 Tactical HUD 1 Map Filters NONE Filters NONE Steam 1 RUN: 6c10a753-a440-4561-8627-a0704e625347